[Event "Titled Tuesday Blitz November 08 Late 2022"]
[White "Shankland, Sam"]
[Black "Preotu, Razvan"]
[WhiteFideId "2004887"]
[BlackFideId "2613280"]
[WhiteElo "2612"]
[BlackElo "2407"]
[Result "1/2-1/2"]
[Round "05"]
[TimeControl "180+1"]
[Date "2022.11.08"]
[WhiteClock "0:01:20"]
[BlackClock "0:00:07"]

1. d4 {[%clk 0:03:00]}  Nf6 {[%clk 0:02:54]} 2. c4 {[%clk 0:03:01]}  g6 {[%clk 0:02:54]} 3. Nc3 {[%clk 0:03:00]}  d5 {[%clk 0:02:55]} 4. Nf3 {[%clk 0:03:00]}  Bg7 {[%clk 0:02:54]} 5. Qb3 {[%clk 0:03:01]}  dxc4 {[%clk 0:02:54]} 6. Qxc4 {[%clk 0:03:02]}  O-O {[%clk 0:02:53]} 7. e4 {[%clk 0:03:01]}  a6 {[%clk 0:02:53]} 8. e5 {[%clk 0:02:55]}  b5 {[%clk 0:02:46]} 9. Qb3 {[%clk 0:02:55]}  Nfd7 {[%clk 0:02:43]} 10. e6 {[%clk 0:02:55]}  fxe6 {[%clk 0:02:39]} 11. Qxe6+ {[%clk 0:02:56]}  Kh8 {[%clk 0:02:38]} 12. Qe4 {[%clk 0:02:56]}  Nb6 {[%clk 0:02:37]} 13. Be3 {[%clk 0:02:56]}  Bf5 {[%clk 0:02:01]} 14. Qh4 {[%clk 0:02:55]}  Nc6 {[%clk 0:02:00]} 15. g4 {[%clk 0:02:54]}  Be6 {[%clk 0:01:54]} 16. Ng5 {[%clk 0:02:47]}  Bg8 {[%clk 0:01:52]} 17. Bg2 {[%clk 0:02:47]}  Nb4 {[%clk 0:01:50]} 18. O-O {[%clk 0:02:46]}  N6d5 {[%clk 0:01:20]} 19. Nxd5 {[%clk 0:02:33]}  Nxd5 {[%clk 0:01:21]} 20. Rac1 {[%clk 0:02:34]}  e5 {[%clk 0:01:00]} 21. dxe5 {[%clk 0:02:13]}  Nxe3 {[%clk 0:00:58]} 22. fxe3 {[%clk 0:02:12]}  Rxf1+ {[%clk 0:00:21]} 23. Rxf1 {[%clk 0:02:08]}  Rb8 {[%clk 0:00:13]} 24. e6 {[%clk 0:02:06]}  h6 {[%clk 0:00:08]} 25. Nf7+ {[%clk 0:02:05]}  Bxf7 {[%clk 0:00:08]} 26. Qxd8+ {[%clk 0:02:05]}  Rxd8 {[%clk 0:00:09]} 27. exf7 {[%clk 0:02:06]}  Bf8 {[%clk 0:00:08]} 28. Bb7 {[%clk 0:02:01]}  Rd6 {[%clk 0:00:08]} 29. e4 {[%clk 0:02:00]}  Kg7 {[%clk 0:00:07]} 30. Rc1 {[%clk 0:01:52]}  Kxf7 {[%clk 0:00:06]} 31. Rxc7+ {[%clk 0:01:51]}  Kf6 {[%clk 0:00:06]} 32. Bd5 {[%clk 0:01:51]}  Kg5 {[%clk 0:00:06]} 33. h3 {[%clk 0:01:48]}  Rb6 {[%clk 0:00:03]} 34. Kg2 {[%clk 0:01:47]}  Bd6 {[%clk 0:00:04]} 35. Rf7 {[%clk 0:01:44]}  Be5 {[%clk 0:00:04]} 36. b3 {[%clk 0:01:44]}  a5 {[%clk 0:00:04]} 37. Re7 {[%clk 0:01:36]}  Kf4 {[%clk 0:00:04]} 38. Rf7+ {[%clk 0:01:30]}  Ke3 {[%clk 0:00:04]} 39. Rf3+ {[%clk 0:01:30]}  Kd4 {[%clk 0:00:04]} 40. h4 {[%clk 0:01:30]}  g5 {[%clk 0:00:04]} 41. h5 {[%clk 0:01:27]}  Rf6 {[%clk 0:00:04]} 42. Rf5 {[%clk 0:01:26]}  b4 {[%clk 0:00:03]} 43. Kf3 {[%clk 0:01:24]}  Rxf5+ {[%clk 0:00:03]} 44. gxf5 {[%clk 0:01:24]}  Bf6 {[%clk 0:00:04]} 45. Bb7 {[%clk 0:01:21]}  Be5 {[%clk 0:00:03]} 46. Ba6 {[%clk 0:01:21]}  Bf6 {[%clk 0:00:03]} 47. Bf1 {[%clk 0:01:21]}  Be5 {[%clk 0:00:03]} 48. Bh3 {[%clk 0:01:22]}  Bf6 {[%clk 0:00:04]} 49. Bg2 {[%clk 0:01:20]}  Be5 {[%clk 0:00:04]} 50. Bf1 {[%clk 0:01:19]}  Bf6 {[%clk 0:00:05]} 51. Bh3 {[%clk 0:01:20]}  Be5 {[%clk 0:00:05]} 52. Bg2 {[%clk 0:01:20]}  Bf6 {[%clk 0:00:06]} 53. Kg4 {[%clk 0:01:21]}  Ke5 {[%clk 0:00:07]} 54. Kf3 {[%clk 0:01:20]}  Kd4 {[%clk 0:00:07]} 55. Kg4 {[%clk 0:01:19]}  Ke5 {[%clk 0:00:07]} 56. Kf3 {[%clk 0:01:20]}  Kd4 {[%clk 0:00:07]} 1/2-1/2


[Site "https://www.chess.com"]

[Event "Titled Tuesday Blitz November 08 Late 2022"]
[White "Sibilio, Mario"]
[Black "Krishnan, Varun"]
[WhiteFideId "800422"]
[BlackFideId "5054508"]
[WhiteElo "2251"]
[BlackElo "2524"]
[Result "1/2-1/2"]
[Round "05"]
[TimeControl "180+1"]
[Date "2022.11.09"]
[WhiteClock "0:00:15"]
[BlackClock "0:00:19"]

1. e4 {[%clk 0:03:00]}  g6 {[%clk 0:02:56]} 2. d4 {[%clk 0:02:55]}  Bg7 {[%clk 0:02:56]} 3. Nf3 {[%clk 0:02:55]}  a6 {[%clk 0:02:56]} 4. c4 {[%clk 0:02:51]}  d6 {[%clk 0:02:54]} 5. h3 {[%clk 0:02:49]}  Nf6 {[%clk 0:02:54]} 6. Nc3 {[%clk 0:02:48]}  O-O {[%clk 0:02:54]} 7. Be3 {[%clk 0:02:47]}  b6 {[%clk 0:02:44]} 8. Qd2 {[%clk 0:02:43]}  Bb7 {[%clk 0:02:44]} 9. Bd3 {[%clk 0:02:43]}  c5 {[%clk 0:02:44]} 10. d5 {[%clk 0:02:41]}  Nbd7 {[%clk 0:02:41]} 11. Bh6 {[%clk 0:02:35]}  Ne5 {[%clk 0:02:29]} 12. Bxg7 {[%clk 0:01:53]}  Kxg7 {[%clk 0:02:22]} 13. Nh2 {[%clk 0:01:49]}  b5 {[%clk 0:02:19]} 14. cxb5 {[%clk 0:01:48]}  axb5 {[%clk 0:02:18]} 15. Bxb5 {[%clk 0:01:46]}  c4 {[%clk 0:02:16]} 16. O-O {[%clk 0:01:45]}  Qb6 {[%clk 0:02:15]} 17. a4 {[%clk 0:01:44]}  h5 {[%clk 0:02:06]} 18. Kh1 {[%clk 0:01:41]}  h4 {[%clk 0:02:06]} 19. f4 {[%clk 0:01:07]}  Nh5 {[%clk 0:02:04]} 20. Ne2 {[%clk 0:01:06]}  Nd3 {[%clk 0:01:58]} 21. Ng4 {[%clk 0:01:01]}  Bc8 {[%clk 0:01:51]} 22. f5 {[%clk 0:00:56]}  Ba6 {[%clk 0:01:39]} 23. Qh6+ {[%clk 0:00:53]}  Kg8 {[%clk 0:01:37]} 24. fxg6 {[%clk 0:00:51]}  fxg6 {[%clk 0:01:29]} 25. Qxg6+ {[%clk 0:00:50]}  Ng7 {[%clk 0:01:29]} 26. Nh6+ {[%clk 0:00:49]}  Kh8 {[%clk 0:01:28]} 27. Nf7+ {[%clk 0:00:48]}  Kg8 {[%clk 0:00:41]} 28. Nh6+ {[%clk 0:00:26]}  Kh8 {[%clk 0:00:41]} 29. Rf7 {[%clk 0:00:26]}  Rxf7 {[%clk 0:00:19]} 30. Nxf7+ {[%clk 0:00:25]}  Kg8 {[%clk 0:00:19]} 31. Nh6+ {[%clk 0:00:17]}  Kh8 {[%clk 0:00:19]} 32. Nf7+ {[%clk 0:00:15]}  Kg8 {[%clk 0:00:19]} 33. Nh6+ {[%clk 0:00:15]}  Kh8 {[%clk 0:00:19]} 34. Nf7+ {[%clk 0:00:15]} 1/2-1/2


[Site "https://www.chess.com"]

[Event "Titled Tuesday Blitz November 08 Late 2022"]
[White "Swiercz, Dariusz"]
[Black "Leitao, Rafael"]
[WhiteFideId "1126881"]
[BlackFideId "2101246"]
[WhiteElo "2627"]
[BlackElo "2609"]
[Result "1-0"]
[Round "05"]
[TimeControl "180+1"]
[Date "2022.11.08"]
[WhiteClock "0:01:12"]
[BlackClock "0:00:21"]

1. d4 {[%clk 0:03:00]}  Nf6 {[%clk 0:02:55]} 2. Bg5 {[%clk 0:03:01]}  d5 {[%clk 0:02:54]} 3. e3 {[%clk 0:03:01]}  Nbd7 {[%clk 0:02:52]} 4. Nd2 {[%clk 0:03:00]}  e6 {[%clk 0:02:52]} 5. Ngf3 {[%clk 0:02:59]}  Be7 {[%clk 0:02:52]} 6. Bd3 {[%clk 0:02:59]}  h6 {[%clk 0:02:52]} 7. Bh4 {[%clk 0:02:57]}  c5 {[%clk 0:02:52]} 8. c3 {[%clk 0:02:58]}  b6 {[%clk 0:02:50]} 9. Qe2 {[%clk 0:02:55]}  Bb7 {[%clk 0:02:50]} 10. O-O {[%clk 0:02:53]}  Ne4 {[%clk 0:02:45]} 11. Bxe7 {[%clk 0:02:50]}  Qxe7 {[%clk 0:02:46]} 12. Ba6 {[%clk 0:02:49]}  Bxa6 {[%clk 0:02:45]} 13. Qxa6 {[%clk 0:02:50]}  Nxd2 {[%clk 0:02:42]} 14. Nxd2 {[%clk 0:02:51]}  O-O {[%clk 0:02:40]} 15. a4 {[%clk 0:02:50]}  Rfb8 {[%clk 0:02:34]} 16. Rfe1 {[%clk 0:02:46]}  Nf6 {[%clk 0:02:32]} 17. Qd3 {[%clk 0:02:41]}  e5 {[%clk 0:02:26]} 18. dxe5 {[%clk 0:02:40]}  Qxe5 {[%clk 0:02:26]} 19. a5 {[%clk 0:02:35]}  b5 {[%clk 0:02:23]} 20. b4 {[%clk 0:02:32]}  c4 {[%clk 0:01:48]} 21. Qc2 {[%clk 0:02:27]}  Ne4 {[%clk 0:01:48]} 22. Nxe4 {[%clk 0:02:26]}  Qxe4 {[%clk 0:01:41]} 23. Qxe4 {[%clk 0:02:25]}  dxe4 {[%clk 0:01:41]} 24. Rad1 {[%clk 0:02:26]}  Rd8 {[%clk 0:01:41]} 25. Rd4 {[%clk 0:02:27]}  Rxd4 {[%clk 0:01:41]} 26. exd4 {[%clk 0:02:28]}  Re8 {[%clk 0:01:27]} 27. f3 {[%clk 0:02:28]}  f5 {[%clk 0:01:23]} 28. fxe4 {[%clk 0:02:24]}  fxe4 {[%clk 0:01:24]} 29. Kf2 {[%clk 0:02:24]}  Kf7 {[%clk 0:01:24]} 30. Ke3 {[%clk 0:02:23]}  Ke6 {[%clk 0:01:00]} 31. Rf1 {[%clk 0:02:23]}  a6 {[%clk 0:00:56]} 32. Rf4 {[%clk 0:02:22]}  Rd8 {[%clk 0:00:48]} 33. g4 {[%clk 0:02:08]}  Rd7 {[%clk 0:00:36]} 34. Rf5 {[%clk 0:02:05]}  Kd6 {[%clk 0:00:35]} 35. h4 {[%clk 0:01:57]}  Re7 {[%clk 0:00:35]} 36. h5 {[%clk 0:01:47]}  Kc6 {[%clk 0:00:32]} 37. Rf8 {[%clk 0:01:36]}  Kc7 {[%clk 0:00:30]} 38. Rf4 {[%clk 0:01:33]}  Kc6 {[%clk 0:00:30]} 39. Rxe4 {[%clk 0:01:28]}  Rf7 {[%clk 0:00:30]} 40. Re6+ {[%clk 0:01:28]}  Kd5 {[%clk 0:00:28]} 41. Rxa6 {[%clk 0:01:25]}  Rf1 {[%clk 0:00:27]} 42. Rb6 {[%clk 0:01:22]}  Rd1 {[%clk 0:00:21]} 43. Rxb5+ {[%clk 0:01:22]}  Kd6 {[%clk 0:00:21]} 44. a6 {[%clk 0:01:18]}  Rd3+ {[%clk 0:00:21]} 45. Ke4 {[%clk 0:01:12]} 1-0


[Site "https://www.chess.com"]

[Event "Titled Tuesday Blitz November 08 Late 2022"]
[White "Taboas Rodriguez, Daniel"]
[Black "Zhigalko, Sergei"]
[WhiteFideId "2208466"]
[BlackFideId "13502956"]
[WhiteElo "2329"]
[BlackElo "2662"]
[Result "0-1"]
[Round "05"]
[TimeControl "180+1"]
[Date "2022.11.09"]
[WhiteClock "0:00:10"]
[BlackClock "0:01:27"]

1. d4 {[%clk 0:02:59]}  Nf6 {[%clk 0:03:00]} 2. Nf3 {[%clk 0:02:59]}  e6 {[%clk 0:03:00]} 3. c4 {[%clk 0:02:59]}  b6 {[%clk 0:03:00]} 4. Nc3 {[%clk 0:02:59]}  Bb4 {[%clk 0:03:00]} 5. Qc2 {[%clk 0:03:00]}  Bb7 {[%clk 0:02:59]} 6. a3 {[%clk 0:03:00]}  Be4 {[%clk 0:02:59]} 7. Qb3 {[%clk 0:02:57]}  Bxc3+ {[%clk 0:02:58]} 8. Qxc3 {[%clk 0:02:58]}  O-O {[%clk 0:02:59]} 9. Bg5 {[%clk 0:02:55]}  d6 {[%clk 0:02:59]} 10. Nd2 {[%clk 0:02:54]}  Bb7 {[%clk 0:02:59]} 11. f3 {[%clk 0:02:53]}  h6 {[%clk 0:02:59]} 12. Bh4 {[%clk 0:02:52]}  Nbd7 {[%clk 0:02:56]} 13. e4 {[%clk 0:02:43]}  c5 {[%clk 0:02:56]} 14. dxc5 {[%clk 0:02:04]}  bxc5 {[%clk 0:02:54]} 15. Bd3 {[%clk 0:01:56]}  Qb6 {[%clk 0:02:30]} 16. O-O {[%clk 0:01:53]}  a5 {[%clk 0:02:30]} 17. b3 {[%clk 0:01:49]}  a4 {[%clk 0:02:26]} 18. Rfb1 {[%clk 0:01:45]}  Bc6 {[%clk 0:02:22]} 19. Bf2 {[%clk 0:01:43]}  axb3 {[%clk 0:02:21]} 20. Rxb3 {[%clk 0:01:42]}  Qc7 {[%clk 0:02:21]} 21. Rb2 {[%clk 0:01:39]}  Ra6 {[%clk 0:02:18]} 22. Rba2 {[%clk 0:01:36]}  Rfa8 {[%clk 0:02:17]} 23. Bc2 {[%clk 0:01:36]}  Ba4 {[%clk 0:02:14]} 24. Nb1 {[%clk 0:01:32]}  Ne5 {[%clk 0:02:11]} 25. Bg3 {[%clk 0:01:22]}  Nfd7 {[%clk 0:02:11]} 26. Nd2 {[%clk 0:01:17]}  Bxc2 {[%clk 0:02:06]} 27. Qxc2 {[%clk 0:01:17]}  Ra4 {[%clk 0:02:06]} 28. h3 {[%clk 0:01:15]}  Nc6 {[%clk 0:01:59]} 29. Kh2 {[%clk 0:01:12]}  e5 {[%clk 0:01:51]} 30. Nb1 {[%clk 0:01:08]}  Nb6 {[%clk 0:01:51]} 31. Nc3 {[%clk 0:01:01]}  Rxc4 {[%clk 0:01:47]} 32. Qb3 {[%clk 0:00:54]}  Nd4 {[%clk 0:01:47]} 33. Qb2 {[%clk 0:00:53]}  Na4 {[%clk 0:01:44]} 34. Nxa4 {[%clk 0:00:52]}  Rcxa4 {[%clk 0:01:45]} 35. Bf2 {[%clk 0:00:48]}  Qa7 {[%clk 0:01:45]} 36. Bxd4 {[%clk 0:00:48]}  exd4 {[%clk 0:01:46]} 37. Qb3 {[%clk 0:00:46]}  c4 {[%clk 0:01:45]} 38. Qb5 {[%clk 0:00:43]}  d3 {[%clk 0:01:40]} 39. Qd5 {[%clk 0:00:31]}  Qc5 {[%clk 0:01:39]} 40. Qb7 {[%clk 0:00:18]}  c3 {[%clk 0:01:38]} 41. Qb3 {[%clk 0:00:14]}  d2 {[%clk 0:01:35]} 42. Rc2 {[%clk 0:00:12]}  Rxa3 {[%clk 0:01:33]} 43. Rxa3 {[%clk 0:00:12]}  Qxa3 {[%clk 0:01:33]} 44. Qd5 {[%clk 0:00:12]}  Qa1 {[%clk 0:01:27]} 45. Rxc3 {[%clk 0:00:10]}  d1=Q {[%clk 0:01:27]} 0-1


[Site "https://www.chess.com"]

[Event "Titled Tuesday Blitz November 08 Late 2022"]
[White "Therrien, Alex L"]
[Black "Przybylski, Wojciech"]
[WhiteFideId "412856"]
[BlackFideId "1117599"]
[WhiteElo "2214"]
[BlackElo "2221"]
[Result "0-1"]
[Round "05"]
[TimeControl "180+1"]
[Date "2022.11.09"]
[WhiteClock "0:00:01"]
[BlackClock "0:00:10"]

1. d4 {[%clk 0:03:00]}  Nf6 {[%clk 0:02:59]} 2. c4 {[%clk 0:03:00]}  c6 {[%clk 0:02:58]} 3. Nf3 {[%clk 0:02:58]}  d5 {[%clk 0:02:58]} 4. e3 {[%clk 0:02:58]}  Bf5 {[%clk 0:02:57]} 5. Nc3 {[%clk 0:02:58]}  e6 {[%clk 0:02:56]} 6. Nh4 {[%clk 0:02:58]}  Be4 {[%clk 0:02:56]} 7. Qb3 {[%clk 0:02:55]}  Qb6 {[%clk 0:02:52]} 8. Nxe4 {[%clk 0:02:47]}  Qxb3 {[%clk 0:02:48]} 9. axb3 {[%clk 0:02:45]}  Nxe4 {[%clk 0:02:44]} 10. Bd3 {[%clk 0:02:42]}  Bb4+ {[%clk 0:02:42]} 11. Ke2 {[%clk 0:02:42]}  f5 {[%clk 0:02:40]} 12. h3 {[%clk 0:02:39]}  Be7 {[%clk 0:02:38]} 13. Nf3 {[%clk 0:02:38]}  Nd7 {[%clk 0:02:38]} 14. Bd2 {[%clk 0:02:15]}  O-O {[%clk 0:02:36]} 15. g3 {[%clk 0:01:58]}  a6 {[%clk 0:02:35]} 16. Be1 {[%clk 0:01:57]}  g6 {[%clk 0:02:34]} 17. Nd2 {[%clk 0:01:56]}  Kg7 {[%clk 0:02:32]} 18. Nb1 {[%clk 0:01:55]}  h5 {[%clk 0:02:28]} 19. f3 {[%clk 0:01:55]}  Nef6 {[%clk 0:02:23]} 20. Nc3 {[%clk 0:01:46]}  e5 {[%clk 0:02:19]} 21. cxd5 {[%clk 0:01:45]}  cxd5 {[%clk 0:02:14]} 22. dxe5 {[%clk 0:01:40]}  Nxe5 {[%clk 0:02:14]} 23. Rd1 {[%clk 0:01:27]}  Rad8 {[%clk 0:02:09]} 24. Bc2 {[%clk 0:01:24]}  Rfe8 {[%clk 0:02:07]} 25. f4 {[%clk 0:00:55]}  Nc6 {[%clk 0:02:04]} 26. Kf3 {[%clk 0:00:26]}  Bc5 {[%clk 0:02:03]} 27. Bf2 {[%clk 0:00:21]}  Nb4 {[%clk 0:01:53]} 28. Bb1 {[%clk 0:00:19]}  b5 {[%clk 0:01:53]} 29. Rd2 {[%clk 0:00:15]}  Re6 {[%clk 0:01:48]} 30. Rhd1 {[%clk 0:00:14]}  Rde8 {[%clk 0:01:48]} 31. Re1 {[%clk 0:00:08]}  Kf7 {[%clk 0:01:48]} 32. Rde2 {[%clk 0:00:07]}  Nc6 {[%clk 0:01:43]} 33. Rd1 {[%clk 0:00:05]}  Nb4 {[%clk 0:01:40]} 34. Na2 {[%clk 0:00:04]}  a5 {[%clk 0:01:35]} 35. Nxb4 {[%clk 0:00:03]}  axb4 {[%clk 0:01:34]} 36. Rde1 {[%clk 0:00:02]}  Ne4 {[%clk 0:01:19]} 37. Bd3 {[%clk 0:00:02]}  Nd6 {[%clk 0:01:10]} 38. Rc2 {[%clk 0:00:01]}  Bb6 {[%clk 0:01:06]} 39. Rce2 {[%clk 0:00:02]}  Rc8 {[%clk 0:01:00]} 40. Bg1 {[%clk 0:00:02]}  Re7 {[%clk 0:00:59]} 41. Rc2 {[%clk 0:00:02]}  Rec7 {[%clk 0:00:59]} 42. Rxc7+ {[%clk 0:00:01]}  Rxc7 {[%clk 0:01:00]} 43. Re2 {[%clk 0:00:02]}  Rc1 {[%clk 0:00:59]} 44. Bf2 {[%clk 0:00:02]}  Ne4 {[%clk 0:00:57]} 45. Kg2 {[%clk 0:00:01]}  Rd1 {[%clk 0:00:53]} 46. Bxe4 {[%clk 0:00:02]}  fxe4 {[%clk 0:00:50]} 47. Rc2 {[%clk 0:00:02]}  Rd3 {[%clk 0:00:45]} 48. Rc6 {[%clk 0:00:02]}  Bd8 {[%clk 0:00:44]} 49. Rd6 {[%clk 0:00:02]}  Be7 {[%clk 0:00:44]} 50. Rd7 {[%clk 0:00:02]}  Ke6 {[%clk 0:00:41]} 51. Rb7 {[%clk 0:00:02]}  Rxb3 {[%clk 0:00:41]} 52. Rxb5 {[%clk 0:00:01]}  Rxb2 {[%clk 0:00:41]} 53. Kf1 {[%clk 0:00:02]}  b3 {[%clk 0:00:39]} 54. Be1 {[%clk 0:00:02]}  d4 {[%clk 0:00:29]} 55. exd4 {[%clk 0:00:01]}  e3 {[%clk 0:00:29]} 56. Bc3 {[%clk 0:00:01]}  Rf2+ {[%clk 0:00:20]} 57. Ke1 {[%clk 0:00:01]}  Rc2 {[%clk 0:00:20]} 58. Rxb3 {[%clk 0:00:01]}  Rxc3 {[%clk 0:00:20]} 59. Rxc3 {[%clk 0:00:01]}  Bb4 {[%clk 0:00:20]} 60. Ke2 {[%clk 0:00:02]}  Bxc3 {[%clk 0:00:21]} 61. Kxe3 {[%clk 0:00:03]}  Kf5 {[%clk 0:00:15]} 62. Kf3 {[%clk 0:00:02]}  Bxd4 {[%clk 0:00:15]} 63. g4+ {[%clk 0:00:03]}  hxg4+ {[%clk 0:00:11]} 64. hxg4+ {[%clk 0:00:04]}  Kf6 {[%clk 0:00:10]} 65. Ke4 {[%clk 0:00:04]}  Bc3 {[%clk 0:00:10]} 66. g5+ {[%clk 0:00:04]}  Ke6 {[%clk 0:00:10]} 67. Ke3 {[%clk 0:00:01]}  Bb2 {[%clk 0:00:09]} 68. Ke4 {[%clk 0:00:01]}  Bc1 {[%clk 0:00:10]} 0-1


[Site "https://www.chess.com"]

[Event "Titled Tuesday Blitz November 08 Late 2022"]
[White "Urazayev, Arystanbek"]
[Black "Darini, Pouria"]
[WhiteFideId "13709810"]
[BlackFideId "12502200"]
[WhiteElo "2441"]
[BlackElo "2483"]
[Result "1-0"]
[Round "05"]
[TimeControl "180+1"]
[Date "2022.11.08"]
[WhiteClock "0:00:16"]
[BlackClock "0:00:06"]

1. e4 {[%clk 0:03:00]}  c5 {[%clk 0:02:59]} 2. Nf3 {[%clk 0:03:01]}  Nc6 {[%clk 0:03:00]} 3. Bb5 {[%clk 0:03:01]}  e6 {[%clk 0:02:59]} 4. O-O {[%clk 0:03:01]}  Nge7 {[%clk 0:03:00]} 5. Re1 {[%clk 0:03:01]}  b6 {[%clk 0:02:55]} 6. d4 {[%clk 0:03:00]}  Nxd4 {[%clk 0:02:54]} 7. Nxd4 {[%clk 0:03:01]}  cxd4 {[%clk 0:02:55]} 8. Qxd4 {[%clk 0:03:01]}  Qc7 {[%clk 0:02:37]} 9. Nc3 {[%clk 0:02:47]}  Nc6 {[%clk 0:02:31]} 10. Qa4 {[%clk 0:02:24]}  Bd6 {[%clk 0:02:19]} 11. Nd5 {[%clk 0:02:18]}  exd5 {[%clk 0:02:16]} 12. exd5+ {[%clk 0:02:18]}  Ne7 {[%clk 0:02:13]} 13. Qh4 {[%clk 0:01:55]}  O-O {[%clk 0:01:42]} 14. Rxe7 {[%clk 0:01:55]}  Qc5 {[%clk 0:00:57]} 15. Bd3 {[%clk 0:01:49]}  f5 {[%clk 0:00:49]} 16. Rxg7+ {[%clk 0:01:29]}  Kxg7 {[%clk 0:00:47]} 17. Bh6+ {[%clk 0:01:30]}  Kh8 {[%clk 0:00:39]} 18. Bxf8 {[%clk 0:01:06]}  Bxf8 {[%clk 0:00:38]} 19. Qf6+ {[%clk 0:01:06]}  Bg7 {[%clk 0:00:37]} 20. Qxf5 {[%clk 0:01:06]}  Kg8 {[%clk 0:00:34]} 21. Qxh7+ {[%clk 0:01:06]}  Kf8 {[%clk 0:00:32]} 22. Qf5+ {[%clk 0:01:04]}  Kg8 {[%clk 0:00:27]} 23. Re1 {[%clk 0:00:58]}  Bb7 {[%clk 0:00:27]} 24. c4 {[%clk 0:00:46]}  Qd4 {[%clk 0:00:13]} 25. Bb1 {[%clk 0:00:34]}  Qxb2 {[%clk 0:00:10]} 26. Qxd7 {[%clk 0:00:30]}  Rf8 {[%clk 0:00:10]} 27. Qe6+ {[%clk 0:00:22]}  Rf7 {[%clk 0:00:11]} 28. Bh7+ {[%clk 0:00:21]}  Kxh7 {[%clk 0:00:10]} 29. Qxf7 {[%clk 0:00:21]}  Qd2 {[%clk 0:00:06]} 30. Qh5+ {[%clk 0:00:16]}  Qh6 {[%clk 0:00:05]} 31. Qxh6+ {[%clk 0:00:16]}  Kxh6 {[%clk 0:00:06]} 32. Re6+ {[%clk 0:00:15]}  Kg5 {[%clk 0:00:05]} 33. Re7 {[%clk 0:00:16]}  Bxd5 {[%clk 0:00:06]} 1-0


[Site "https://www.chess.com"]

[Event "Titled Tuesday Blitz November 08 Late 2022"]
[White "Wartiovaara, Oliver"]
[Black "Thomas, Anysia"]
[WhiteFideId "513024"]
[BlackFideId "670472"]
[WhiteElo "2213"]
[BlackElo "2069"]
[Result "1-0"]
[Round "05"]
[TimeControl "180+1"]
[Date "2022.11.09"]
[WhiteClock "0:00:21"]
[BlackClock "0:00:09"]

1. Nf3 {[%clk 0:03:00]}  c5 {[%clk 0:02:46]} 2. g3 {[%clk 0:03:01]}  g6 {[%clk 0:02:40]} 3. Bg2 {[%clk 0:02:58]}  Bg7 {[%clk 0:02:39]} 4. O-O {[%clk 0:02:58]}  Nc6 {[%clk 0:02:39]} 5. c3 {[%clk 0:02:54]}  Nf6 {[%clk 0:02:31]} 6. d4 {[%clk 0:02:53]}  O-O {[%clk 0:02:31]} 7. dxc5 {[%clk 0:02:49]}  Qa5 {[%clk 0:02:09]} 8. b4 {[%clk 0:02:47]}  Qd8 {[%clk 0:02:08]} 9. Bb2 {[%clk 0:02:42]}  a5 {[%clk 0:02:07]} 10. a3 {[%clk 0:02:41]}  Ne4 {[%clk 0:02:06]} 11. Nd4 {[%clk 0:02:33]}  Nxd4 {[%clk 0:01:53]} 12. cxd4 {[%clk 0:02:29]}  d5 {[%clk 0:01:53]} 13. Nd2 {[%clk 0:02:19]}  Nf6 {[%clk 0:01:44]} 14. e4 {[%clk 0:01:59]}  Be6 {[%clk 0:01:17]} 15. e5 {[%clk 0:01:49]}  Nd7 {[%clk 0:01:14]} 16. f4 {[%clk 0:01:47]}  Nb8 {[%clk 0:01:09]} 17. g4 {[%clk 0:01:36]}  Qd7 {[%clk 0:00:57]} 18. Bh3 {[%clk 0:01:34]}  Qb5 {[%clk 0:00:40]} 19. f5 {[%clk 0:01:29]}  Bd7 {[%clk 0:00:39]} 20. Bc3 {[%clk 0:01:14]}  Qd3 {[%clk 0:00:27]} 21. Rf3 {[%clk 0:01:14]}  Qb5 {[%clk 0:00:24]} 22. Bf1 {[%clk 0:01:12]}  Qc6 {[%clk 0:00:21]} 23. b5 {[%clk 0:01:09]}  Qc8 {[%clk 0:00:21]} 24. Bd3 {[%clk 0:01:06]}  f6 {[%clk 0:00:20]} 25. e6 {[%clk 0:01:02]}  Be8 {[%clk 0:00:19]} 26. a4 {[%clk 0:00:59]}  g5 {[%clk 0:00:19]} 27. Qf1 {[%clk 0:00:48]}  h6 {[%clk 0:00:19]} 28. Qg2 {[%clk 0:00:47]}  Qc7 {[%clk 0:00:18]} 29. Qg3 {[%clk 0:00:45]}  Qxg3+ {[%clk 0:00:18]} 30. Rxg3 {[%clk 0:00:46]}  b6 {[%clk 0:00:16]} 31. c6 {[%clk 0:00:45]}  Nxc6 {[%clk 0:00:16]} 32. bxc6 {[%clk 0:00:46]}  Bxc6 {[%clk 0:00:16]} 33. Bb2 {[%clk 0:00:35]}  Rfb8 {[%clk 0:00:15]} 34. Bb5 {[%clk 0:00:33]}  Bb7 {[%clk 0:00:14]} 35. Rc1 {[%clk 0:00:31]}  Bf8 {[%clk 0:00:14]} 36. Rgc3 {[%clk 0:00:31]}  Ba6 {[%clk 0:00:14]} 37. Bxa6 {[%clk 0:00:29]}  Rxa6 {[%clk 0:00:14]} 38. Rb3 {[%clk 0:00:29]}  Ra7 {[%clk 0:00:14]} 39. Rc6 {[%clk 0:00:29]}  Rab7 {[%clk 0:00:15]} 40. Rb5 {[%clk 0:00:29]}  Kg7 {[%clk 0:00:14]} 41. Nb1 {[%clk 0:00:29]}  h5 {[%clk 0:00:14]} 42. h3 {[%clk 0:00:29]}  hxg4 {[%clk 0:00:14]} 43. hxg4 {[%clk 0:00:30]}  Kh6 {[%clk 0:00:14]} 44. Nc3 {[%clk 0:00:30]}  Kg7 {[%clk 0:00:15]} 45. Ba3 {[%clk 0:00:29]}  Re8 {[%clk 0:00:13]} 46. Rbxb6 {[%clk 0:00:28]}  Rxb6 {[%clk 0:00:12]} 47. Rxb6 {[%clk 0:00:29]}  Rc8 {[%clk 0:00:12]} 48. Bc5 {[%clk 0:00:29]}  Kh6 {[%clk 0:00:11]} 49. Nxd5 {[%clk 0:00:29]}  Kg7 {[%clk 0:00:11]} 50. Rb5 {[%clk 0:00:29]}  Rd8 {[%clk 0:00:11]} 51. Rxa5 {[%clk 0:00:29]}  Rxd5 {[%clk 0:00:10]} 52. Rb5 {[%clk 0:00:25]}  Rd8 {[%clk 0:00:10]} 53. a5 {[%clk 0:00:26]}  Ra8 {[%clk 0:00:11]} 54. Bb6 {[%clk 0:00:25]}  Ra6 {[%clk 0:00:11]} 55. Rc5 {[%clk 0:00:25]}  Kg8 {[%clk 0:00:11]} 56. Rc7 {[%clk 0:00:25]}  Kg7 {[%clk 0:00:12]} 57. Ra7 {[%clk 0:00:25]}  Rxa7 {[%clk 0:00:12]} 58. Bxa7 {[%clk 0:00:26]}  Kg8 {[%clk 0:00:12]} 59. Bc5 {[%clk 0:00:26]}  Kg7 {[%clk 0:00:12]} 60. a6 {[%clk 0:00:27]}  Kh7 {[%clk 0:00:13]} 61. a7 {[%clk 0:00:28]}  Kh6 {[%clk 0:00:13]} 62. a8=Q {[%clk 0:00:29]}  Kh7 {[%clk 0:00:13]} 63. Kg2 {[%clk 0:00:28]}  Bh6 {[%clk 0:00:12]} 64. Kf3 {[%clk 0:00:29]}  Bf8 {[%clk 0:00:13]} 65. Ke4 {[%clk 0:00:29]}  Bh6 {[%clk 0:00:14]} 66. Kd5 {[%clk 0:00:30]}  Bf8 {[%clk 0:00:15]} 67. Kc6 {[%clk 0:00:31]}  Bh6 {[%clk 0:00:15]} 68. Kd7 {[%clk 0:00:32]}  Bf8 {[%clk 0:00:15]} 69. Ke8 {[%clk 0:00:33]}  Kg8 {[%clk 0:00:15]} 70. Qa1 {[%clk 0:00:32]}  Kh7 {[%clk 0:00:14]} 71. Kf7 {[%clk 0:00:30]}  Bh6 {[%clk 0:00:13]} 72. Bxe7 {[%clk 0:00:27]}  Bf8 {[%clk 0:00:12]} 73. Bxf6 {[%clk 0:00:26]}  Bh6 {[%clk 0:00:11]} 74. d5 {[%clk 0:00:25]}  Bg7 {[%clk 0:00:11]} 75. Qh1+ {[%clk 0:00:21]}  Bh6 {[%clk 0:00:10]} 76. Bxg5 {[%clk 0:00:21]}  Kh8 {[%clk 0:00:10]} 77. d6 {[%clk 0:00:22]}  Kh7 {[%clk 0:00:09]} 78. d7 {[%clk 0:00:21]} 1-0


[Site "https://www.chess.com"]